[Event "Late-Titled-Tuesday-Blitz-September-26-2023"]
[Site "Chess.com"]
[Date "2023.09.26"]
[Round "6"]
[White "0gZPanda"]
[Black "Mikhail_Bryakin"]
[Result "0-1"]
[WhiteElo "3031"]
[BlackElo "2859"]
[TimeControl "180+1"]
[EndTime "15:04:42 PDT"]
[Termination "Mikhail_Bryakin won by resignation"]

1. d4 {[%clk 0:02:59.1]} 1... d6 {[%clk 0:02:48.9]} 2. c4 {[%clk 0:02:57.5]}
2... e5 {[%clk 0:02:43.5]} 3. e4 {[%clk 0:02:55.8]} 3... exd4 {[%clk 0:02:24.8]}
4. Qxd4 {[%clk 0:02:54.1]} 4... Nc6 {[%clk 0:02:19]} 5. Qd1 {[%clk 0:02:48.5]}
5... g6 {[%clk 0:02:19.2]} 6. Nc3 {[%clk 0:02:41.8]} 6... Bg7 {[%clk 0:02:19.7]}
7. Nge2 {[%clk 0:02:39.1]} 7... Nge7 {[%clk 0:02:18.3]} 8. g3 {[%clk 0:02:38]}
8... O-O {[%clk 0:02:18.7]} 9. Bg2 {[%clk 0:02:38.5]} 9... f5 {[%clk 0:02:19.3]}
10. O-O {[%clk 0:02:38.7]} 10... Kh8 {[%clk 0:02:15.8]} 11. Be3 {[%clk
0:02:34.2]} 11... fxe4 {[%clk 0:02:16]} 12. Qd2 {[%clk 0:02:30.9]} 12... Bf5
{[%clk 0:02:15.6]} 13. Nxe4 {[%clk 0:02:29.3]} 13... Ne5 {[%clk 0:02:11.4]} 14.
Rac1 {[%clk 0:02:22.9]} 14... Bxe4 {[%clk 0:02:05.9]} 15. Bxe4 {[%clk
0:02:17.8]} 15... Nf3+ {[%clk 0:02:06.8]} 16. Bxf3 {[%clk 0:02:15.2]} 16... Rxf3
{[%clk 0:02:07.7]} 17. Kg2 {[%clk 0:02:15.3]} 17... Rf7 {[%clk 0:02:01.5]} 18.
Bd4 {[%clk 0:02:06.5]} 18... Qd7 {[%clk 0:01:59.8]} 19. Bxg7+ {[%clk 0:01:55.2]}
19... Rxg7 {[%clk 0:02:00.7]} 20. Nf4 {[%clk 0:01:54.4]} 20... Nf5 {[%clk
0:01:55.4]} 21. Rfe1 {[%clk 0:01:49.8]} 21... Re8 {[%clk 0:01:55.7]} 22. Rxe8+
{[%clk 0:01:46.8]} 22... Qxe8 {[%clk 0:01:56.6]} 23. Re1 {[%clk 0:01:44.8]}
23... Re7 {[%clk 0:01:56.5]} 24. Qc3+ {[%clk 0:01:38.7]} 24... Kg8 {[%clk
0:01:36.1]} 25. Nd5 {[%clk 0:01:37.6]} 25... Qc6 {[%clk 0:01:36.8]} 26. Rd1
{[%clk 0:01:31.2]} 26... Re5 {[%clk 0:01:19.2]} 27. Qf3 {[%clk 0:01:30.2]} 27...
Qxc4 {[%clk 0:01:12.1]} 28. b3 {[%clk 0:01:26.5]} 28... Qc2 {[%clk 0:01:05.6]}
29. Kg1 {[%clk 0:01:13.7]} 29... c6 {[%clk 0:00:55]} 30. Nf4 {[%clk 0:01:12.3]}
30... Qe4 {[%clk 0:00:51.5]} 31. Qc3 {[%clk 0:01:08]} 31... d5 {[%clk
0:00:44.1]} 32. Qa5 {[%clk 0:01:04.5]} 32... Nd4 {[%clk 0:00:37.9]} 33. Qxa7
{[%clk 0:00:33.4]} 33... Nf3+ {[%clk 0:00:37.7]} 34. Kf1 {[%clk 0:00:33.6]}
34... Nxh2+ {[%clk 0:00:36]} 35. Kg1 {[%clk 0:00:33.5]} 35... Nf3+ {[%clk
0:00:36.7]} 36. Kf1 {[%clk 0:00:34]} 36... g5 {[%clk 0:00:25.8]} 37. Nh5 {[%clk
0:00:26.3]} 37... Qg6 {[%clk 0:00:20.7]} 38. Qb8+ {[%clk 0:00:24.2]} 38... Kf7
{[%clk 0:00:21.4]} 39. g4 {[%clk 0:00:22.2]} 39... Nh2+ {[%clk 0:00:19.9]} 40.
Kg2 {[%clk 0:00:20.3]} 40... Nxg4 {[%clk 0:00:20.6]} 41. Ng3 {[%clk 0:00:20.1]}
41... Re7 {[%clk 0:00:20.8]} 42. Rh1 {[%clk 0:00:18.5]} 42... h6 {[%clk
0:00:21.1]} 43. Qh8 {[%clk 0:00:17.5]} 43... Qf6 {[%clk 0:00:20.3]} 44. Qh7+
{[%clk 0:00:16.5]} 44... Ke8 {[%clk 0:00:20.9]} 45. Qc2 {[%clk 0:00:16]} 45...
Kd7 {[%clk 0:00:17.1]} 46. Rd1 {[%clk 0:00:14.5]} 46... Rf7 {[%clk 0:00:17]} 47.
Rd2 {[%clk 0:00:14.6]} 47... Qf3+ {[%clk 0:00:17.1]} 48. Kg1 {[%clk 0:00:15.1]}
48... Nxf2 {[%clk 0:00:17.3]} 49. Rxf2 {[%clk 0:00:09]} 49... Qxg3+ {[%clk
0:00:17.5]} 50. Rg2 {[%clk 0:00:09.9]} 50... Qe3+ {[%clk 0:00:17.1]} 51. Kh2
{[%clk 0:00:09.6]} 51... Rf4 {[%clk 0:00:17.4]} 52. Qh7+ {[%clk 0:00:08.4]}
52... Kc8 {[%clk 0:00:18.1]} 53. Qh8+ {[%clk 0:00:06.3]} 53... Kc7 {[%clk
0:00:18.7]} 54. Qh7+ {[%clk 0:00:06.1]} 54... Kb6 {[%clk 0:00:19.3]} 0-1

[Event "Late-Titled-Tuesday-Blitz-September-26-2023"]
[Site "Chess.com"]
[Date "2023.09.26"]
[Round "6"]
[White "Goryachkina"]
[Black "Angry_Twin"]
[Result "1/2-1/2"]
[WhiteElo "2666"]
[BlackElo "2941"]
[TimeControl "180+1"]
[EndTime "15:04:47 PDT"]
[Termination "Game drawn by repetition"]

1. e4 {[%clk 0:02:59.7]} 1... c5 {[%clk 0:02:58.4]} 2. Nf3 {[%clk 0:02:59.6]}
2... d6 {[%clk 0:02:59]} 3. Bb5+ {[%clk 0:02:59.2]} 3... Nd7 {[%clk 0:02:58.8]}
4. Ba4 {[%clk 0:02:58.2]} 4... Nf6 {[%clk 0:02:57.9]} 5. O-O {[%clk 0:02:58.2]}
5... a6 {[%clk 0:02:58.4]} 6. c4 {[%clk 0:02:57.8]} 6... Nxe4 {[%clk 0:02:58.5]}
7. Re1 {[%clk 0:02:55.9]} 7... Nf6 {[%clk 0:02:57.8]} 8. d4 {[%clk 0:02:55.8]}
8... e6 {[%clk 0:02:54.3]} 9. d5 {[%clk 0:02:55.3]} 9... e5 {[%clk 0:02:54.3]}
10. Nxe5 {[%clk 0:02:55.2]} 10... Be7 {[%clk 0:02:47.9]} 11. Nc6 {[%clk
0:02:39.9]} 11... bxc6 {[%clk 0:02:46.7]} 12. dxc6 {[%clk 0:02:40.1]} 12... O-O
{[%clk 0:02:44.5]} 13. cxd7 {[%clk 0:02:40]} 13... Bxd7 {[%clk 0:02:45]} 14.
Bxd7 {[%clk 0:02:33]} 14... Qxd7 {[%clk 0:02:45.9]} 15. Nc3 {[%clk 0:02:33]}
15... h6 {[%clk 0:02:45.7]} 16. h3 {[%clk 0:02:28.8]} 16... Rfe8 {[%clk
0:02:45.3]} 17. Bf4 {[%clk 0:02:26.1]} 17... Bf8 {[%clk 0:02:40.7]} 18. Qd2
{[%clk 0:02:24.7]} 18... Qf5 {[%clk 0:02:37]} 19. Rad1 {[%clk 0:02:15.1]} 19...
Rxe1+ {[%clk 0:02:31]} 20. Rxe1 {[%clk 0:02:14.9]} 20... Rd8 {[%clk 0:02:31.7]}
21. Bg3 {[%clk 0:02:05.1]} 21... Rd7 {[%clk 0:02:24.8]} 22. b3 {[%clk
0:01:58.1]} 22... d5 {[%clk 0:02:13.5]} 23. cxd5 {[%clk 0:01:45.3]} 23... Nxd5
{[%clk 0:02:13.7]} 24. Nxd5 {[%clk 0:01:37.2]} 24... Rxd5 {[%clk 0:02:14.6]} 25.
Qe2 {[%clk 0:01:30.2]} 25... Qf6 {[%clk 0:02:12.7]} 26. Qe8 {[%clk 0:01:26]}
26... Rd8 {[%clk 0:02:10.3]} 27. Qa4 {[%clk 0:01:25.8]} 27... Rd2 {[%clk
0:01:59.2]} 28. Re8 {[%clk 0:01:02]} 28... Rd1+ {[%clk 0:01:51.7]} 29. Kh2
{[%clk 0:01:01.9]} 29... Qa1 {[%clk 0:01:51.6]} 30. Be5 {[%clk 0:00:52.8]} 30...
Rh1+ {[%clk 0:01:42.3]} 31. Kg3 {[%clk 0:00:52.9]} 31... Qb1 {[%clk 0:01:33.9]}
32. Qxa6 {[%clk 0:00:47.7]} 32... Qf5 {[%clk 0:01:07.7]} 33. Qd6 {[%clk
0:00:28.4]} 33... Qg5+ {[%clk 0:01:08]} 34. Kf3 {[%clk 0:00:28.4]} 34... Qf5+
{[%clk 0:00:48.7]} 35. Kg3 {[%clk 0:00:26.8]} 35... Qg5+ {[%clk 0:00:46.7]} 36.
Kf3 {[%clk 0:00:27.1]} 36... Qf5+ {[%clk 0:00:47.2]} 37. Bf4 {[%clk 0:00:16.1]}
37... Kh7 {[%clk 0:00:46.9]} 38. Qxf8 {[%clk 0:00:11.7]} 38... Qd5+ {[%clk
0:00:38.8]} 39. Kg3 {[%clk 0:00:10.9]} 39... Qd3+ {[%clk 0:00:38.1]} 40. Be3
{[%clk 0:00:08.8]} 40... Qg6+ {[%clk 0:00:36.8]} 41. Kf3 {[%clk 0:00:09.1]}
41... Qc6+ {[%clk 0:00:33.1]} 42. Ke2 {[%clk 0:00:05.7]} 42... Qa6+ {[%clk
0:00:22.7]} 43. Kf3 {[%clk 0:00:05.2]} 43... Qf6+ {[%clk 0:00:20.9]} 44. Kg3
{[%clk 0:00:04.3]} 44... Qg6+ {[%clk 0:00:13.5]} 45. Kf3 {[%clk 0:00:04.7]}
45... Qc6+ {[%clk 0:00:11.9]} 46. Ke2 {[%clk 0:00:04.6]} 46... Qa6+ {[%clk
0:00:07.6]} 47. Kf3 {[%clk 0:00:04.7]} 47... Qf6+ {[%clk 0:00:06.2]} 48. Kg3
{[%clk 0:00:04.2]} 48... Qg6+ {[%clk 0:00:05.2]} 1/2-1/2

[Event "Late-Titled-Tuesday-Blitz-September-26-2023"]
[Site "Chess.com"]
[Date "2023.09.26"]
[Round "6"]
[White "sergeikim"]
[Black "acertijo08"]
[Result "0-1"]
[WhiteElo "2598"]
[BlackElo "2408"]
[TimeControl "180+1"]
[EndTime "15:04:55 PDT"]
[Termination "acertijo08 won by resignation"]

1. d4 {[%clk 0:03:00.9]} 1... Nf6 {[%clk 0:02:58.9]} 2. c4 {[%clk 0:03:00.5]}
2... e6 {[%clk 0:02:59.3]} 3. Nc3 {[%clk 0:03:00.7]} 3... Bb4 {[%clk 0:02:57.7]}
4. Qc2 {[%clk 0:03:00.7]} 4... O-O {[%clk 0:02:56.9]} 5. a3 {[%clk 0:03:00.9]}
5... Bxc3+ {[%clk 0:02:56.5]} 6. Qxc3 {[%clk 0:03:01.8]} 6... d5 {[%clk
0:02:56.9]} 7. Nf3 {[%clk 0:03:01.8]} 7... b6 {[%clk 0:02:53.2]} 8. g3 {[%clk
0:03:00.6]} 8... dxc4 {[%clk 0:02:49.5]} 9. Qxc4 {[%clk 0:03:00.1]} 9... Ba6
{[%clk 0:02:49.5]} 10. Qc2 {[%clk 0:02:59.9]} 10... Nbd7 {[%clk 0:02:49]} 11.
Qc6 {[%clk 0:02:59.5]} 11... Qc8 {[%clk 0:02:36.3]} 12. Bg2 {[%clk 0:02:58.8]}
12... Bb7 {[%clk 0:02:36.4]} 13. Qa4 {[%clk 0:02:53.9]} 13... c5 {[%clk
0:02:34.2]} 14. O-O {[%clk 0:02:53.6]} 14... cxd4 {[%clk 0:02:34.1]} 15. Qxd4
{[%clk 0:02:52.3]} 15... Nc5 {[%clk 0:02:32.3]} 16. Bg5 {[%clk 0:02:40.6]} 16...
Nb3 {[%clk 0:02:30.4]} 17. Qh4 {[%clk 0:02:40.3]} 17... Nxa1 {[%clk 0:02:07.3]}
18. Bxf6 {[%clk 0:02:39.3]} 18... gxf6 {[%clk 0:02:05.4]} 19. Rxa1 {[%clk
0:02:35.3]} 19... Qc2 {[%clk 0:01:58.4]} 20. Qxf6 {[%clk 0:02:32.1]} 20... Qg6
{[%clk 0:01:50.4]} 21. Qf4 {[%clk 0:02:29]} 21... Qe4 {[%clk 0:01:44.7]} 22.
Qg5+ {[%clk 0:02:18.7]} 22... Qg6 {[%clk 0:01:44.6]} 23. Qf4 {[%clk 0:02:11.6]}
23... Bd5 {[%clk 0:01:27.8]} 24. Ne5 {[%clk 0:02:03.7]} 24... Qg7 {[%clk
0:01:20.4]} 25. Bxd5 {[%clk 0:01:48.3]} 25... exd5 {[%clk 0:01:20.5]} 26. Rd1
{[%clk 0:01:47]} 26... Rad8 {[%clk 0:01:16.3]} 27. Ng4 {[%clk 0:01:43.2]} 27...
f5 {[%clk 0:01:09]} 28. Ne5 {[%clk 0:01:36.8]} 28... Rfe8 {[%clk 0:01:04.6]} 29.
Nc6 {[%clk 0:01:32.9]} 29... Rd7 {[%clk 0:00:55.4]} 30. Nd4 {[%clk 0:01:30.2]}
30... Re4 {[%clk 0:00:47.3]} 31. Qd2 {[%clk 0:01:29.8]} 31... f4 {[%clk
0:00:37.4]} 32. Qd3 {[%clk 0:01:22.1]} 32... Qe5 {[%clk 0:00:34.5]} 33. b4
{[%clk 0:00:57.6]} 33... fxg3 {[%clk 0:00:34.5]} 34. hxg3 {[%clk 0:00:56.7]}
34... h5 {[%clk 0:00:33.8]} 35. b5 {[%clk 0:00:53.2]} 35... h4 {[%clk
0:00:34.1]} 36. Nf3 {[%clk 0:00:51.6]} 36... Qg7 {[%clk 0:00:30.9]} 37. Kg2
{[%clk 0:00:47.3]} 37... hxg3 {[%clk 0:00:30.5]} 38. fxg3 {[%clk 0:00:47.4]}
38... Rde7 {[%clk 0:00:28.9]} 39. Rd2 {[%clk 0:00:46.6]} 39... d4 {[%clk
0:00:20.5]} 40. Qc4+ {[%clk 0:00:41]} 40... Kh8 {[%clk 0:00:19]} 41. Qc8+ {[%clk
0:00:39]} 41... Qg8 {[%clk 0:00:18]} 42. Qxg8+ {[%clk 0:00:31.6]} 42... Kxg8
{[%clk 0:00:17.7]} 43. Nxd4 {[%clk 0:00:31.7]} 43... Rd7 {[%clk 0:00:15.7]} 44.
e3 {[%clk 0:00:31.5]} 44... Rxe3 {[%clk 0:00:15.4]} 45. Kf2 {[%clk 0:00:23.4]}
45... Re4 {[%clk 0:00:14.8]} 46. Nf3 {[%clk 0:00:23.7]} 46... Rxd2+ {[%clk
0:00:14.9]} 47. Nxd2 {[%clk 0:00:24.2]} 47... Ra4 {[%clk 0:00:15.3]} 48. Ke3
{[%clk 0:00:22.4]} 48... Rxa3+ {[%clk 0:00:15.6]} 49. Kd4 {[%clk 0:00:22.6]}
49... Rxg3 {[%clk 0:00:15.6]} 50. Nc4 {[%clk 0:00:20.1]} 50... Rg5 {[%clk
0:00:14.1]} 51. Ne5 {[%clk 0:00:18.2]} 51... Kf8 {[%clk 0:00:13]} 52. Nc6 {[%clk
0:00:16.8]} 52... Rxb5 {[%clk 0:00:10.9]} 53. Nxa7 {[%clk 0:00:16.8]} 53... Rc5
{[%clk 0:00:10.9]} 54. Kd3 {[%clk 0:00:15.2]} 54... Ke7 {[%clk 0:00:11]} 55. Kd4
{[%clk 0:00:15]} 55... Kd7 {[%clk 0:00:11.1]} 0-1

[Event "Late-Titled-Tuesday-Blitz-September-26-2023"]
[Site "Chess.com"]
[Date "2023.09.26"]
[Round "6"]
[White "komogro"]
[Black "nOcHeaTiNgKiD"]
[Result "1-0"]
[WhiteElo "2454"]
[BlackElo "2575"]
[TimeControl "180+1"]
[EndTime "15:05:03 PDT"]
[Termination "komogro won by checkmate"]

1. Nf3 {[%clk 0:02:24.7]} 1... d5 {[%clk 0:02:58.8]} 2. d4 {[%clk 0:02:24.2]}
2... Nf6 {[%clk 0:02:58.8]} 3. c4 {[%clk 0:02:25.1]} 3... c6 {[%clk 0:02:59.4]}
4. Nc3 {[%clk 0:02:24.3]} 4... a6 {[%clk 0:02:59.5]} 5. cxd5 {[%clk 0:02:24.6]}
5... cxd5 {[%clk 0:02:59.7]} 6. Bg5 {[%clk 0:02:23.1]} 6... Ne4 {[%clk
0:02:56.1]} 7. Bf4 {[%clk 0:02:20.9]} 7... Nc6 {[%clk 0:02:49.8]} 8. Rc1 {[%clk
0:02:20.1]} 8... Nxc3 {[%clk 0:02:37.2]} 9. bxc3 {[%clk 0:02:18.4]} 9... g6
{[%clk 0:02:37.1]} 10. e3 {[%clk 0:02:18.6]} 10... Bg7 {[%clk 0:02:36.7]} 11. c4
{[%clk 0:02:16.1]} 11... O-O {[%clk 0:02:27.4]} 12. cxd5 {[%clk 0:02:16.1]}
12... Qxd5 {[%clk 0:02:28.2]} 13. Bc4 {[%clk 0:02:15.8]} 13... Qa5+ {[%clk
0:02:27.1]} 14. Qd2 {[%clk 0:02:15.8]} 14... Qxd2+ {[%clk 0:02:17.1]} 15. Kxd2
{[%clk 0:02:12.7]} 15... Rd8 {[%clk 0:02:15.8]} 16. Ke2 {[%clk 0:02:12.6]} 16...
Bf5 {[%clk 0:02:05.8]} 17. h3 {[%clk 0:02:09.5]} 17... h6 {[%clk 0:01:56.7]} 18.
Rhd1 {[%clk 0:02:00.8]} 18... g5 {[%clk 0:01:54.6]} 19. Bc7 {[%clk 0:01:53.6]}
19... Rd7 {[%clk 0:01:52.1]} 20. Bb6 {[%clk 0:01:53.1]} 20... e6 {[%clk
0:01:37.8]} 21. g4 {[%clk 0:01:47.5]} 21... Be4 {[%clk 0:01:36]} 22. Ne1 {[%clk
0:01:47.3]} 22... Re8 {[%clk 0:01:24.4]} 23. f3 {[%clk 0:01:45.2]} 23... Bd5
{[%clk 0:01:13.2]} 24. Nd3 {[%clk 0:01:27.5]} 24... Bf8 {[%clk 0:01:06.2]} 25.
Nc5 {[%clk 0:00:49]} 25... Rde7 {[%clk 0:01:02.6]} 26. e4 {[%clk 0:00:41.3]}
26... Bxc4+ {[%clk 0:01:02.8]} 27. Rxc4 {[%clk 0:00:42.2]} 27... Bg7 {[%clk
0:01:02.8]} 28. Nb3 {[%clk 0:00:22.7]} 28... Rd7 {[%clk 0:00:59.9]} 29. Rc2
{[%clk 0:00:20.1]} 29... Nb4 {[%clk 0:00:49.7]} 30. Rcd2 {[%clk 0:00:19.9]}
30... Rc8 {[%clk 0:00:49]} 31. Nc5 {[%clk 0:00:19.8]} 31... Re7 {[%clk
0:00:46.8]} 32. Kf2 {[%clk 0:00:16.4]} 32... Rc6 {[%clk 0:00:43.5]} 33. Ba5
{[%clk 0:00:15.4]} 33... Nxa2 {[%clk 0:00:37.9]} 34. Rxa2 {[%clk 0:00:13.8]}
34... b6 {[%clk 0:00:38.3]} 35. Bxb6 {[%clk 0:00:08.2]} 35... Rxb6 {[%clk
0:00:38.2]} 36. Rxa6 {[%clk 0:00:08.8]} 36... Rb2+ {[%clk 0:00:36.8]} 37. Ke3
{[%clk 0:00:08.8]} 37... Rc7 {[%clk 0:00:33.6]} 38. Ra8+ {[%clk 0:00:03.4]}
38... Kh7 {[%clk 0:00:33.3]} 39. Ra3 {[%clk 0:00:03.4]} 39... e5 {[%clk
0:00:33.4]} 40. Nb3 {[%clk 0:00:01.6]} 40... Rc3+ {[%clk 0:00:32.9]} 41. Rd3
{[%clk 0:00:02.1]} 41... Rcc2 {[%clk 0:00:33.4]} 42. dxe5 {[%clk 0:00:01.9]}
42... Bf8 {[%clk 0:00:32.9]} 43. Ra7 {[%clk 0:00:01.1]} 43... Rxb3 {[%clk
0:00:31.1]} 44. Rxb3 {[%clk 0:00:01.5]} 44... Bc5+ {[%clk 0:00:31]} 45. Kd3
{[%clk 0:00:02.3]} 45... Rf2 {[%clk 0:00:30.4]} 46. Rxf7+ {[%clk 0:00:02.5]}
46... Kg8 {[%clk 0:00:31]} 47. Rbb7 {[%clk 0:00:02.4]} 47... Bf8 {[%clk
0:00:28.7]} 48. e6 {[%clk 0:00:02.8]} 48... h5 {[%clk 0:00:27.7]} 49. Kd4 {[%clk
0:00:02.8]} 49... Rd2+ {[%clk 0:00:27.6]} 50. Ke5 {[%clk 0:00:03.2]} 50... h4
{[%clk 0:00:28.2]} 51. Kf5 {[%clk 0:00:02.9]} 51... Rc2 {[%clk 0:00:26.5]} 52.
Kxg5 {[%clk 0:00:03.7]} 52... Rc6 {[%clk 0:00:26.9]} 53. Kxh4 {[%clk 0:00:03.8]}
53... Rxe6 {[%clk 0:00:27.3]} 54. Kg3 {[%clk 0:00:04.4]} 54... Rh6 {[%clk
0:00:27.7]} 55. Rf5 {[%clk 0:00:04.6]} 55... Bd6+ {[%clk 0:00:27.6]} 56. e5
{[%clk 0:00:04.5]} 56... Bf8 {[%clk 0:00:26.8]} 57. Rb8 {[%clk 0:00:04.5]} 57...
Kg7 {[%clk 0:00:26.6]} 58. Rbxf8 {[%clk 0:00:04.4]} 58... Rc6 {[%clk 0:00:26.9]}
59. R5f7+ {[%clk 0:00:03.8]} 59... Kg6 {[%clk 0:00:27.3]} 60. Rf6+ {[%clk
0:00:04.7]} 60... Kg5 {[%clk 0:00:27.9]} 61. Rg8# {[%clk 0:00:04.5]} 1-0

[Event "Late-Titled-Tuesday-Blitz-September-26-2023"]
[Site "Chess.com"]
[Date "2023.09.26"]
[Round "6"]
[White "esrosenberg"]
[Black "nitpicker"]
[Result "1-0"]
[WhiteElo "2368"]
[BlackElo "2241"]
[TimeControl "180+1"]
[EndTime "15:05:03 PDT"]
[Termination "esrosenberg won on time"]

1. Nf3 {[%clk 0:03:00]} 1... Nf6 {[%clk 0:02:58.5]} 2. d4 {[%clk 0:02:59.8]}
2... d5 {[%clk 0:02:56.6]} 3. c3 {[%clk 0:02:59.5]} 3... g6 {[%clk 0:02:53.7]}
4. Bf4 {[%clk 0:02:55.5]} 4... Bg7 {[%clk 0:02:53.5]} 5. h3 {[%clk 0:02:54.8]}
5... O-O {[%clk 0:02:53]} 6. Nbd2 {[%clk 0:02:54]} 6... b6 {[%clk 0:02:51.8]} 7.
e3 {[%clk 0:02:50]} 7... Bb7 {[%clk 0:02:51.8]} 8. a4 {[%clk 0:02:47]} 8... a6
{[%clk 0:02:48.9]} 9. a5 {[%clk 0:02:44.7]} 9... Nbd7 {[%clk 0:02:34.4]} 10.
axb6 {[%clk 0:02:38.5]} 10... cxb6 {[%clk 0:02:32]} 11. Be2 {[%clk 0:02:35.9]}
11... b5 {[%clk 0:02:24]} 12. O-O {[%clk 0:02:34.7]} 12... Rc8 {[%clk
0:02:15.9]} 13. Ne5 {[%clk 0:02:10.3]} 13... Ne4 {[%clk 0:02:08.4]} 14. Nxe4
{[%clk 0:02:07.6]} 14... dxe4 {[%clk 0:01:59.1]} 15. Nxd7 {[%clk 0:01:45.2]}
15... Qxd7 {[%clk 0:01:59]} 16. Qb3 {[%clk 0:01:28.2]} 16... Rfd8 {[%clk
0:01:30.2]} 17. Bg5 {[%clk 0:01:23.4]} 17... h6 {[%clk 0:01:26]} 18. Bg4 {[%clk
0:01:21.2]} 18... Qc7 {[%clk 0:01:06.3]} 19. Bxc8 {[%clk 0:00:56.8]} 19... Bxc8
{[%clk 0:01:06.6]} 20. Bf4 {[%clk 0:00:54.4]} 20... Qc6 {[%clk 0:01:04.1]} 21.
Qa3 {[%clk 0:00:50.1]} 21... Bf8 {[%clk 0:00:57.5]} 22. Qa5 {[%clk 0:00:44.6]}
22... Qd5 {[%clk 0:00:35.8]} 23. Qc7 {[%clk 0:00:41.5]} 23... Re8 {[%clk
0:00:28.8]} 24. Ra5 {[%clk 0:00:38.6]} 24... g5 {[%clk 0:00:27.2]} 25. Bg3
{[%clk 0:00:37.4]} 25... Bg7 {[%clk 0:00:24.9]} 26. Rc1 {[%clk 0:00:32.8]} 26...
f5 {[%clk 0:00:18.7]} 27. c4 {[%clk 0:00:31.7]} 27... Qd7 {[%clk 0:00:16.3]} 28.
Qxd7 {[%clk 0:00:30.8]} 28... Bxd7 {[%clk 0:00:17.2]} 29. Rxa6 {[%clk
0:00:27.1]} 29... bxc4 {[%clk 0:00:16.2]} 30. Ra7 {[%clk 0:00:24.2]} 30... Be6
{[%clk 0:00:15.5]} 31. Rca1 {[%clk 0:00:12.4]} 31... Kf7 {[%clk 0:00:14.9]} 32.
R1a6 {[%clk 0:00:12.1]} 32... Bd5 {[%clk 0:00:13.8]} 33. Rd7 {[%clk 0:00:11.6]}
33... Be6 {[%clk 0:00:12.5]} 34. Rc7 {[%clk 0:00:11.7]} 34... Bd5 {[%clk
0:00:11.3]} 35. Rc5 {[%clk 0:00:11.1]} 35... Be6 {[%clk 0:00:10.6]} 36. Be5
{[%clk 0:00:10.8]} 36... Bf6 {[%clk 0:00:09.6]} 37. Bxf6 {[%clk 0:00:10.6]}
37... exf6 {[%clk 0:00:09.1]} 38. Rc7+ {[%clk 0:00:10.1]} 38... Kg6 {[%clk
0:00:08.1]} 39. Rd6 {[%clk 0:00:08.6]} 39... f4 {[%clk 0:00:06.7]} 40. d5 {[%clk
0:00:08.3]} 40... Bf5 {[%clk 0:00:06.9]} 41. Rcc6 {[%clk 0:00:06.8]} 41... Rf8
{[%clk 0:00:06.1]} 42. Rxc4 {[%clk 0:00:06]} 42... f3 {[%clk 0:00:06]} 43. g4
{[%clk 0:00:05.6]} 43... Bc8 {[%clk 0:00:04.8]} 44. Rcc6 {[%clk 0:00:05.2]}
44... Bb7 {[%clk 0:00:03.8]} 45. Rb6 {[%clk 0:00:04.9]} 45... Bc8 {[%clk
0:00:03.7]} 46. Kh2 {[%clk 0:00:04.8]} 46... h5 {[%clk 0:00:03]} 47. gxh5+
{[%clk 0:00:04.4]} 47... Kxh5 {[%clk 0:00:02.9]} 48. Rxf6 {[%clk 0:00:04.7]}
48... Rh8 {[%clk 0:00:02.9]} 49. d6 {[%clk 0:00:03.9]} 49... g4 {[%clk
0:00:03.2]} 50. hxg4+ {[%clk 0:00:04.1]} 50... Kxg4+ {[%clk 0:00:02.9]} 51. Kg1
{[%clk 0:00:04.6]} 51... Bf5 {[%clk 0:00:02.3]} 52. d7 {[%clk 0:00:04.1]} 52...
Rd8 {[%clk 0:00:02]} 53. Rbd6 {[%clk 0:00:03.7]} 53... Ra8 {[%clk 0:00:01.3]}
54. Rd1 {[%clk 0:00:02.9]} 1-0

[Event "Late-Titled-Tuesday-Blitz-September-26-2023"]
[Site "Chess.com"]
[Date "2023.09.26"]
[Round "6"]
[White "RichardLeyvaP"]
[Black "vugarrasulov"]
[Result "0-1"]
[WhiteElo "2646"]
[BlackElo "2951"]
[TimeControl "180+1"]
[EndTime "15:05:04 PDT"]
[Termination "vugarrasulov won on time"]

1. e4 {[%clk 0:02:59.8]} 1... c5 {[%clk 0:02:59.8]} 2. Nf3 {[%clk 0:02:59.3]}
2... Nc6 {[%clk 0:03:00.2]} 3. d4 {[%clk 0:02:59.6]} 3... cxd4 {[%clk
0:03:00.4]} 4. Nxd4 {[%clk 0:03:00.1]} 4... e5 {[%clk 0:03:01]} 5. Nb5 {[%clk
0:02:59.5]} 5... d6 {[%clk 0:03:01.4]} 6. c4 {[%clk 0:02:59.3]} 6... Be7 {[%clk
0:03:01.3]} 7. N1c3 {[%clk 0:02:56.6]} 7... a6 {[%clk 0:03:01.4]} 8. Na3 {[%clk
0:02:56.9]} 8... f5 {[%clk 0:02:58.8]} 9. exf5 {[%clk 0:02:56]} 9... Bxf5 {[%clk
0:02:59.7]} 10. Bd3 {[%clk 0:02:56]} 10... Be6 {[%clk 0:02:59.6]} 11. O-O {[%clk
0:02:55.8]} 11... Nf6 {[%clk 0:02:59.6]} 12. Nc2 {[%clk 0:02:55.9]} 12... O-O
{[%clk 0:02:57.7]} 13. Bg5 {[%clk 0:02:45.2]} 13... Rc8 {[%clk 0:02:54.3]} 14.
Ne3 {[%clk 0:02:39]} 14... Nd4 {[%clk 0:02:52.2]} 15. Rc1 {[%clk 0:02:35.6]}
15... Qe8 {[%clk 0:02:39.5]} 16. b3 {[%clk 0:02:32.2]} 16... Nd7 {[%clk
0:02:34.9]} 17. Bxe7 {[%clk 0:02:29.5]} 17... Qxe7 {[%clk 0:02:35.8]} 18. Ne2
{[%clk 0:02:20.1]} 18... Nxe2+ {[%clk 0:02:25.6]} 19. Qxe2 {[%clk 0:02:19.3]}
19... Qg5 {[%clk 0:02:20.6]} 20. Be4 {[%clk 0:02:15.7]} 20... Nc5 {[%clk
0:02:16.7]} 21. Bd5 {[%clk 0:02:09.7]} 21... Kh8 {[%clk 0:02:16.6]} 22. Bxe6
{[%clk 0:02:03.5]} 22... Nxe6 {[%clk 0:02:17.5]} 23. Rcd1 {[%clk 0:02:03.6]}
23... Nd4 {[%clk 0:02:12.5]} 24. Qg4 {[%clk 0:02:02.7]} 24... Qxg4 {[%clk
0:02:10.7]} 25. Nxg4 {[%clk 0:02:02.5]} 25... b5 {[%clk 0:02:11.6]} 26. Ne3
{[%clk 0:01:49.2]} 26... h6 {[%clk 0:02:08.2]} 27. Rd2 {[%clk 0:01:45.3]} 27...
Rc6 {[%clk 0:02:06.1]} 28. f4 {[%clk 0:01:24.9]} 28... Rxf4 {[%clk 0:01:53.9]}
29. Rxf4 {[%clk 0:01:23.9]} 29... exf4 {[%clk 0:01:54.8]} 30. Rxd4 {[%clk
0:01:24.6]} 30... fxe3 {[%clk 0:01:54.4]} 31. Kf1 {[%clk 0:01:14.6]} 31... Kh7
{[%clk 0:01:48.2]} 32. Ke2 {[%clk 0:01:14.2]} 32... Kg6 {[%clk 0:01:47.9]} 33.
Kxe3 {[%clk 0:01:14.5]} 33... bxc4 {[%clk 0:01:47.7]} 34. Rxc4 {[%clk
0:01:13.9]} 34... Rb6 {[%clk 0:01:40.6]} 35. Kd4 {[%clk 0:01:09.8]} 35... Kf5
{[%clk 0:01:37.3]} 36. Kd5 {[%clk 0:01:09.2]} 36... a5 {[%clk 0:01:21.3]} 37.
Ra4 {[%clk 0:01:03.6]} 37... Rb5+ {[%clk 0:01:07.3]} 38. Kxd6 {[%clk 0:01:02.4]}
38... h5 {[%clk 0:01:07.5]} 39. Rc4 {[%clk 0:00:59]} 39... Kg6 {[%clk
0:00:52.3]} 40. Rc5 {[%clk 0:00:49.7]} 40... Rb6+ {[%clk 0:00:52.3]} 41. Rc6
{[%clk 0:00:38.1]} 41... Rb5 {[%clk 0:00:47.4]} 42. Rc5 {[%clk 0:00:37.6]} 42...
Rb6+ {[%clk 0:00:47.6]} 43. Kd5 {[%clk 0:00:28.8]} 43... Rb8 {[%clk 0:00:21.3]}
44. Rxa5 {[%clk 0:00:28.3]} 44... Rd8+ {[%clk 0:00:21.6]} 45. Ke4 {[%clk
0:00:28.5]} 45... Rd2 {[%clk 0:00:22.5]} 46. Kf3 {[%clk 0:00:28.6]} 46... Rb2
{[%clk 0:00:16.8]} 47. h4 {[%clk 0:00:27.2]} 47... Rc2 {[%clk 0:00:15.4]} 48. g3
{[%clk 0:00:25.7]} 48... Rc3+ {[%clk 0:00:15.7]} 49. Kg2 {[%clk 0:00:26]} 49...
Rc2+ {[%clk 0:00:16.6]} 50. Kh3 {[%clk 0:00:26.3]} 50... Rb2 {[%clk 0:00:15.2]}
51. Ra4 {[%clk 0:00:26.4]} 51... Kf5 {[%clk 0:00:15.1]} 52. b4 {[%clk
0:00:26.7]} 52... Ke4 {[%clk 0:00:15.2]} 53. a3 {[%clk 0:00:19.6]} 53... Kf3
{[%clk 0:00:15.2]} 0-1